[Event "LJ Slovak Open 2022"]
[Site "Liptovsky Jan"]
[Date "2022.06.26"]
[Round "7.37"]
[White "Hlavac, Tomas"]
[Black "Petrik, Matus"]
[Result "0-1"]
[ECO "B01"]
[WhiteElo "1409"]
[BlackElo "1684"]
[Annotator "NA RC"]
[PlyCount "136"]
[EventDate "2022.06.23"]
[EventType "swiss"]
[EventCountry "SVK"]
[SourceTitle "playchess.com"]
[Source "ChessBase"]
[SourceQuality "1"]
[TimeControl "3600+30"]

1. e4 {[%emt 0:00:03]} d5 {[%emt 0:00:04]} 2. e5 {[%emt 0:00:08]} Bf5 {[%emt 0:00:09]} 3. Nf3 {[%emt 0:00:00]} e6 {[%emt 0:00:07]} 4. d4 {[%emt 0:00:28]} h6 {[%emt 0:00:28]} 5. Be2 {[%emt 0:00:40]} c5 {[%emt 0:00:07]} 6. c3 {[%emt 0:00:12]} Nc6 {[%emt 0:00:05]} 7. O-O {[%emt 0:00:51]} cxd4 {[%emt 0:00:18]} 8. cxd4 {[%emt 0:00:44]} Bb4 {[%emt 0:00:46]} 9. a3 {[%emt 0:00:15]} Ba5 {[%emt 0:00:06]} 10. b4 {[%emt 0:01:16]} Bc7 {[%emt 0:02:10]} 11. Nc3 {[%emt 0:00:53]} a6 {[%emt 0:00:02]} 12. Na4 {[%emt 0:01:13]} Nge7 {[%emt 0:01:12]} 13. Nc5 {[%emt 0:00:29]} Rb8 {[%emt 0:00:07]} 14. Nh4 {[%emt 0:04:25]} Bh7 {[%emt 0:00:11]} 15. Be3 {[%emt 0:01:30]} O-O {[%emt 0:00:05]} 16. Bh5 {[%emt 0:01:16]} Nf5 {[%emt 0:01:03]} 17. Nxf5 {[%emt 0:00:28]} Bxf5 {[%emt 0:00:03]} 18. Qf3 {[%emt 0:01:36]} Bb6 {[%emt 0:01:56]} 19. Qg3 {[%emt 0:00:38]} Kh7 {[%emt 0:00:21]} 20. Bg4 {[%emt 0:02:59]} Bxg4 {[%emt 0:01:17]} 21. Qxg4 {[%emt 0:00:06]} Bxc5 {[%emt 0:00:37]} 22. bxc5 {[%emt 0:00:10]} b6 {[%emt 0:00:35]} 23. cxb6 {[%emt 0:01:21]} Qxb6 {[%emt 0:00:22]} 24. f4 {[%emt 0:00:18]} Qb3 {[%emt 0:01:08]} 25. Bf2 {[%emt 0:00:41]} g6 {[%emt 0:03:32]} 26. Qe2 {[%emt 0:02:52]} Qa4 {[%emt 0:00:22]} 27. Rfd1 {[%emt 0:00:58]} Rb3 {[%emt 0:00:14]} 28. Qc2 {[%emt 0:02:22]} Rfb8 {[%emt 0:01:38]} 29. h3 {[%emt 0:04:59]} Na5 {[%emt 0:00:43]} 30. Kh2 {[%emt 0:03:14]} Nc4 {[%emt 0:00:28]} 31. Ra2 {[%emt 0:03:33]} Nxa3 {[%emt 0:00:56]} 32. Qc5 {[%emt 0:01:03]} R3b5 {[%emt 0:04:31]} 33. Qc1 {[%emt 0:06:48]} Rb3 {[%emt 0:00:21]} 34. Rdd2 {[%emt 0:02:52]} Qb4 {[%emt 0:01:12]} 35. Re2 {[%emt 0:06:22]} Qc4 {[%emt 0:06:04]} 36. Qd1 {[%emt 0:02:34]} a5 {[%emt 0:01:23]} 37. Ra1 {[%emt 0:01:01]} Rb1 {[%emt 0:02:57]} 38. Rxb1 {[%emt 0:00:37]} Rxb1 {[%emt 0:00:02]} 39. Qd2 {[%emt 0:00:55]} Qb4 {[%emt 0:00:34]} 40. Qe3 {[%emt 0:02:01]} Rb3 {[%emt 0:00:55]} 41. Qc1 {[%emt 0:00:55]} Nc4 {[%emt 0:00:22]} 42. Ra2 {[%emt 0:01:01]} Rb1 {[%emt 0:06:42]} 43. Qc2 {[%emt 0:00:33]} Rb2 {[%emt 0:00:02]} 44. Rxb2 {[%emt 0:00:32]} Qxb2 {[%emt 0:00:03]} 45. Qxb2 {[%emt 0:00:25]} Nxb2 {[%emt 0:00:02]} 46. Be1 {[%emt 0:00:18]} a4 {[%emt 0:01:10]} 47. Bc3 {[%emt 0:00:22]} a3 {[%emt 0:01:01]} 48. Kg3 {[%emt 0:00:08]} Nc4 {[%emt 0:00:32]} 49. Kf2 {[%emt 0:00:08]} Kg7 {[%emt 0:04:14]} 50. Ke2 {[%emt 0:00:06]} f6 {[%emt 0:01:08]} 51. Kd3 {[%emt 0:00:48]} fxe5 {[%emt 0:00:17]} 52. dxe5 {[%emt 0:00:54]} Kf7 {[%emt 0:03:19]} 53. Bd4 {[%emt 0:00:27]} h5 {[%emt 0:01:37]} 54. Kc3 {[%emt 0:00:45]} h4 {[%emt 0:01:45]} 55. Kb3 {[%emt 0:00:35]} g5 {[%emt 0:00:10]} 56. fxg5 {[%emt 0:00:30]} Kg6 {[%emt 0:00:02]} 57. Bc5 {[%emt 0:01:36]} Kxg5 {[%emt 0:00:06]} 58. Be7+ {[%emt 0:00:50]} Kh5 {[%emt 0:00:29]} 59. Bd6 {[%emt 0:02:08]} Ne3 {[%emt 0:00:14]} 60. Bxa3 {[%emt 0:00:19]} Nxg2 {[%emt 0:00:11]} 61. Bc1 {[%emt 0:00:54]} Kg6 {[%emt 0:00:13]} 62. Kc3 {[%emt 0:00:27]} Kf5 {[%emt 0:00:05]} 63. Kd4 {[%emt 0:00:19]} Nf4 {[%emt 0:00:06]} 64. Bb2 {[%emt 0:01:07]} Nxh3 {[%emt 0:00:11]} 65. Ke3 {[%emt 0:00:08]} Kg4 {[%emt 0:00:35]} 66. Ke2 {[%emt 0:02:39]} Nf4+ {[%emt 0:00:08]} 67. Kf1 {[%emt 0:00:40]} Nd3 {[%emt 0:00:40]} 68. Bd4 {[%emt 0:00:16]} Kf4 {[%emt 0:00:14]} 0-1

[Event "LJ Slovak Open 2022"]
[Site "Liptovsky Jan"]
[Date "2022.06.26"]
[Round "7.38"]
[White "Szabo, Marian"]
[Black "Magda, Filip"]
[Result "0-1"]
[ECO "A49"]
[WhiteElo "1467"]
[BlackElo "1624"]
[Annotator "NA RC"]
[PlyCount "116"]
[EventDate "2022.06.23"]
[EventType "swiss"]
[EventCountry "SVK"]
[SourceTitle "playchess.com"]
[Source "ChessBase"]
[SourceQuality "1"]
[TimeControl "3600+30"]

1. d4 {[%emt 0:00:04]} Nf6 {[%emt 0:00:11]} 2. Nf3 {[%emt 0:00:08]} g6 {[%emt 0:00:09]} 3. g3 {[%emt 0:00:16]} Bg7 {[%emt 0:00:18]} 4. Bg2 {[%emt 0:00:08]} O-O {[%emt 0:00:07]} 5. O-O {[%emt 0:00:07]} d6 {[%emt 0:00:32]} 6. e3 {[%emt 0:00:36]} c5 {[%emt 0:00:31]} 7. c4 {[%emt 0:00:44]} Na6 {[%emt 0:00:50]} 8. a3 {[%emt 0:00:24]} Nc7 {[%emt 0:00:10]} 9. b4 {[%emt 0:01:50]} cxb4 {[%emt 0:02:37]} 10. axb4 {[%emt 0:03:58]} a6 {[%emt 0:01:12]} 11. Nbd2 {[%emt 0:00:15]} Rb8 {[%emt 0:01:40]} 12. Re1 {[%emt 0:01:54]} b5 {[%emt 0:02:41]} 13. Qc2 {[%emt 0:04:35]} bxc4 {[%emt 0:02:50]} 14. Qxc4 {[%emt 0:00:19]} Ncd5 {[%emt 0:00:24]} 15. Rb1 {[%emt 0:00:59]} Qb6 {[%emt 0:05:17]} 16. Ba3 {[%emt 0:03:11]} Bd7 {[%emt 0:01:44]} 17. Qb3 {[%emt 0:05:01]} h6 {[%emt 0:05:10]} 18. Nh4 {[%emt 0:01:52]} Be6 {[%emt 0:04:10]} 19. Nc4 {[%emt 0:02:52]} Qa7 {[%emt 0:01:38]} 20. Qd3 {[%emt 0:08:58]} Bd7 {[%emt 0:09:01]} 21. Qb3 {[%emt 0:01:51]} Kh7 {[%emt 0:07:51]} 22. Na5 {[%emt 0:00:40]} Nb6 {[%emt 0:01:39]} 23. Bc6 {[%emt 0:03:28]} Rbc8 {[%emt 0:03:22]} 24. Bxd7 {[%emt 0:05:29]} Qxd7 {[%emt 0:00:46]} 25. Qd3 {[%emt 0:01:43]} Qa7 {[%emt 0:02:58]} 26. Rec1 {[%emt 0:00:46]} Rxc1+ {[%emt 0:01:34]} 27. Bxc1 {[%emt 0:00:31]} Rc8 {[%emt 0:01:07]} 28. Bd2 {[%emt 0:00:35]} e6 {[%emt 0:02:29]} 29. b5 {[%emt 0:01:18]} axb5 {[%emt 0:00:50]} 30. Qxb5 {[%emt 0:00:44]} Nbd7 {[%emt 0:03:07]} 31. Qb7 {[%emt 0:00:48]} Qxb7 {[%emt 0:00:40]} 32. Rxb7 {[%emt 0:00:28]} Rc2 {[%emt 0:01:14]} 33. Bb4 {[%emt 0:00:43]} d5 {[%emt 0:00:46]} 34. Be7 {[%emt 0:00:23]} Kg8 {[%emt 0:01:34]} 35. Bd6 {[%emt 0:06:04]} Nf8 {[%emt 0:01:35]} 36. Bb4 {[%emt 0:01:35]} Ng4 {[%emt 0:00:46]} 37. Be1 {[%emt 0:02:09]} Rc1 {[%emt 0:00:59]} 38. Nf3 {[%emt 0:00:04]} e5 {[%emt 0:01:17]} 39. h3 {[%emt 0:00:41]} Nxe3 {[%emt 0:01:39]} 40. fxe3 {[%emt 0:00:41]} e4 {[%emt 0:00:08]} 41. Nb3 {[%emt 0:00:49]} Rb1 {[%emt 0:00:21]} 42. Nc5 {[%emt 0:00:24]} Rxb7 {[%emt 0:00:26]} 43. Nxb7 {[%emt 0:00:11]} exf3 {[%emt 0:00:04]} 44. Kf2 {[%emt 0:00:36]} Ne6 {[%emt 0:00:18]} 45. Kxf3 {[%emt 0:00:20]} Ng5+ {[%emt 0:00:17]} 46. Kg2 {[%emt 0:00:29]} Ne4 {[%emt 0:00:40]} 47. Nc5 {[%emt 0:00:31]} Nxc5 {[%emt 0:01:06]} 48. dxc5 {[%emt 0:00:04]} Kf8 {[%emt 0:00:05]} 49. Bb4 {[%emt 0:00:31]} Ke8 {[%emt 0:00:21]} 50. Kf3 {[%emt 0:00:09]} Kd7 {[%emt 0:01:07]} 51. Ke2 {[%emt 0:00:44]} Kc6 {[%emt 0:01:04]} 52. Kd3 {[%emt 0:00:05]} f5 {[%emt 0:00:23]} 53. g4 {[%emt 0:00:27]} fxg4 {[%emt 0:00:30]} 54. hxg4 {[%emt 0:00:06]} h5 {[%emt 0:00:16]} 55. gxh5 {[%emt 0:00:27]} gxh5 {[%emt 0:00:03]} 56. Ba3 {[%emt 0:01:23]} h4 {[%emt 0:00:22]} 57. e4 {[%emt 0:01:01]} h3 {[%emt 0:01:35]} 58. exd5+ {[%emt 0:00:04]} Kxd5 {[%emt 0:00:08]} 0-1

[Event "LJ Slovak Open 2022"]
[Site "Liptovsky Jan"]
[Date "2022.06.26"]
[Round "7.39"]
[White "Sekova, Olivia"]
[Black "Vojtko, Imrich"]
[Result "1-0"]
[ECO "B06"]
[WhiteElo "1708"]
[BlackElo "1382"]
[Annotator "NA"]
[PlyCount "43"]
[EventDate "2022.06.23"]
[EventType "swiss"]
[EventCountry "SVK"]
[SourceTitle "playchess.com"]
[Source "ChessBase"]
[SourceQuality "1"]
[TimeControl "3600+30"]

1. e4 {[%emt 0:00:05]} g6 {[%emt 0:00:21]} 2. d4 {[%emt 0:00:18]} d6 {[%emt 0:00:13]} 3. Nc3 {[%emt 0:00:42]} c6 {[%emt 0:00:18]} 4. Be3 {[%emt 0:00:25]} Bg7 {[%emt 0:00:38]} 5. Nge2 {[%emt 0:00:48]} Bh6 {[%emt 0:00:43]} 6. Bxh6 {[%emt 0:01:43]} Nxh6 {[%emt 0:00:16]} 7. Qd2 {[%emt 0:00:47]} Ng4 {[%emt 0:01:18]} 8. f3 {[%emt 0:01:52]} Nf6 {[%emt 0:00:20]} 9. O-O-O {[%emt 0:01:16]} O-O {[%emt 0:01:44]} 10. g4 {[%emt 0:02:15]} b5 {[%emt 0:00:27]} 11. Ng3 {[%emt 0:02:32]} a5 {[%emt 0:01:06]} 12. Qh6 {[%emt 0:00:55]} Kh8 {[%emt 0:01:04]} 13. h4 {[%emt 0:01:59]} Ng8 {[%emt 0:00:24]} 14. Qe3 {[%emt 0:00:38]} Qc7 {[%emt 0:02:06]} 15. h5 {[%emt 0:02:50]} Nd7 {[%emt 0:03:55]} 16. Qg5 {[%emt 0:06:43]} f6 {[%emt 0:01:53]} 17. hxg6 {[%emt 0:00:25]} Rf7 {[%emt 0:02:23]} 18. Qh5 {[%emt 0:01:25]} h6 {[%emt 0:01:13]} 19. gxf7 {[%emt 0:00:22]} Kg7 {[%emt 0:01:59]} 20. Nf5+ {[%emt 0:00:23]} Kh7 {[%emt 0:05:52]} 21. Qxh6+ {[%emt 0:00:16]} Nxh6 {[%emt 0:00:25]} 22. Rxh6# {[%emt 0:00:05]} 1-0

[Event "LJ Slovak Open 2022"]
[Site "Liptovsky Jan"]
[Date "2022.06.26"]
[Round "7.40"]
[White "Kaminsky, Ladislav"]
[Black "Livnansky, Michal"]
[Result "1/2-1/2"]
[ECO "D02"]
[WhiteElo "1615"]
[BlackElo "1279"]
[Annotator "NA RC"]
[PlyCount "76"]
[EventDate "2022.06.23"]
[EventType "swiss"]
[EventCountry "SVK"]
[SourceTitle "playchess.com"]
[Source "ChessBase"]
[SourceQuality "1"]
[TimeControl "3600+30"]

1. Nf3 {[%emt 0:00:06]} Nf6 {[%emt 0:00:21]} 2. d4 {[%emt 0:00:06]} e6 {[%emt 0:00:26]} 3. Bf4 {[%emt 0:00:14]} c5 {[%emt 0:00:14]} 4. e3 {[%emt 0:00:06]} d5 {[%emt 0:01:22]} 5. c3 {[%emt 0:00:18]} b6 {[%emt 0:00:38]} 6. Bd3 {[%emt 0:01:13]} Bd6 {[%emt 0:00:37]} 7. Bg3 {[%emt 0:00:59]} O-O {[%emt 0:00:22]} 8. Nbd2 {[%emt 0:00:04]} Ba6 {[%emt 0:01:28]} 9. Bxa6 {[%emt 0:01:53]} Nxa6 {[%emt 0:00:15]} 10. Ne5 {[%emt 0:00:15]} Qc7 {[%emt 0:05:53]} 11. O-O {[%emt 0:01:06]} c4 {[%emt 0:01:11]} 12. f4 {[%emt 0:00:26]} b5 {[%emt 0:02:01]} 13. a3 {[%emt 0:00:51]} Nb8 {[%emt 0:02:29]} 14. Bh4 {[%emt 0:01:00]} Be7 {[%emt 0:04:20]} 15. Rf3 {[%emt 0:03:03]} Nbd7 {[%emt 0:02:42]} 16. Rh3 {[%emt 0:00:45]} g6 {[%emt 0:04:46]} 17. Qf3 {[%emt 0:01:39]} Rfb8 {[%emt 0:04:07]} 18. Bg5 {[%emt 0:03:44]} Bf8 {[%emt 0:08:28]} 19. Qg3 {[%emt 0:01:00]} h5 {[%emt 0:05:18]} 20. Qh4 {[%emt 0:05:17]} Bg7 {[%emt 0:04:23]} 21. g4 {[%emt 0:02:36]} Nxe5 {[%emt 0:02:52]} 22. Bxf6 {[%emt 0:00:48]} Bxf6 {[%emt 0:01:53]} 23. Qxf6 {[%emt 0:00:21]} Nxg4 {[%emt 0:00:09]} 24. Qg5 {[%emt 0:00:21]} Kh7 {[%emt 0:01:52]} 25. Rg3 {[%emt 0:03:24]} Qd8 {[%emt 0:01:32]} 26. h3 {[%emt 0:00:54]} f6 {[%emt 0:04:05]} 27. Qh4 {[%emt 0:00:29]} Nh6 {[%emt 0:00:38]} 28. Rg2 {[%emt 0:01:45]} Nf5 {[%emt 0:00:28]} 29. Qf2 {[%emt 0:00:10]} a5 {[%emt 0:02:34]} 30. Kh2 {[%emt 0:00:11]} Qd6 {[%emt 0:02:29]} 31. e4 {[%emt 0:01:47]} dxe4 {[%emt 0:02:36]} 32. Nxe4 {[%emt 0:00:08]} Qe7 {[%emt 0:00:20]} 33. Rag1 {[%emt 0:00:44]} Rg8 {[%emt 0:01:22]} 34. Qe2 {[%emt 0:00:25]} Nd6 {[%emt 0:01:28]} 35. Nc5 {[%emt 0:02:40]} Rae8 {[%emt 0:00:45]} 36. Re1 {[%emt 0:00:52]} e5 {[%emt 0:01:02]} 37. fxe5 {[%emt 0:01:00]} fxe5 {[%emt 0:00:10]} 38. dxe5 {[%emt 0:01:33]} Nf7 {[%emt 0:00:58]} 1/2-1/2

[Event "LJ Slovak Open 2022"]
[Site "Liptovsky Jan"]
[Date "2022.06.26"]
[Round "7.41"]
[White "Kolibik, Jan"]
[Black "Haasova, Nina"]
[Result "1-0"]
[ECO "A22"]
[WhiteElo "1621"]
[BlackElo "1216"]
[Annotator "NA RC"]
[PlyCount "60"]
[EventDate "2022.06.23"]
[EventType "swiss"]
[EventCountry "SVK"]
[SourceTitle "playchess.com"]
[Source "ChessBase"]
[SourceQuality "1"]
[TimeControl "3600+30"]

1. c4 {[%emt 0:00:16]} e5 {[%emt 0:00:19]} 2. g3 {[%emt 0:00:11]} Nf6 {[%emt 0:00:23]} 3. Bg2 {[%emt 0:00:16]} c6 {[%emt 0:00:33]} 4. Nf3 {[%emt 0:00:45]} d6 {[%emt 0:00:38]} 5. Nc3 {[%emt 0:01:10]} g6 {[%emt 0:00:24]} 6. d3 {[%emt 0:01:22]} Bg7 {[%emt 0:01:05]} 7. Bd2 {[%emt 0:00:42]} O-O {[%emt 0:00:55]} 8. Qc1 {[%emt 0:00:06]} Bg4 {[%emt 0:01:03]} 9. h3 {[%emt 0:00:37]} Bxf3 {[%emt 0:00:33]} 10. Bxf3 {[%emt 0:00:29]} Nbd7 {[%emt 0:00:46]} 11. Bh6 {[%emt 0:00:17]} Nb6 {[%emt 0:01:09]} 12. Bxg7 {[%emt 0:01:01]} Kxg7 {[%emt 0:00:17]} 13. O-O {[%emt 0:02:25]} d5 {[%emt 0:00:14]} 14. b3 {[%emt 0:00:35]} dxc4 {[%emt 0:01:10]} 15. dxc4 {[%emt 0:00:50]} Re8 {[%emt 0:01:07]} 16. Qc2 {[%emt 0:01:01]} Qe7 {[%emt 0:01:38]} 17. e3 {[%emt 0:01:18]} e4 {[%emt 0:00:53]} 18. Be2 {[%emt 0:01:09]} Rad8 {[%emt 0:01:00]} 19. Rad1 {[%emt 0:00:34]} Nbd7 {[%emt 0:02:14]} 20. Kg2 {[%emt 0:02:38]} Nc5 {[%emt 0:01:14]} 21. Rxd8 {[%emt 0:00:37]} Rxd8 {[%emt 0:00:26]} 22. Rd1 {[%emt 0:00:08]} Rxd1 {[%emt 0:00:52]} 23. Qxd1 {[%emt 0:00:58]} a6 {[%emt 0:01:19]} 24. b4 {[%emt 0:02:07]} Ncd7 {[%emt 0:00:49]} 25. c5 {[%emt 0:00:48]} b5 {[%emt 0:01:37]} 26. Qd4 {[%emt 0:03:17]} h6 {[%emt 0:01:00]} 27. Bg4 {[%emt 0:00:52]} Nf8 {[%emt 0:00:27]} 28. Bd1 {[%emt 0:07:31]} Ne6 {[%emt 0:01:07]} 29. Qe5 {[%emt 0:01:55]} Kf8 {[%emt 0:00:39]} 30. Nxe4 {[%emt 0:00:26]} Nxe4 {[%emt 0:00:31]} 1-0

[Event "LJ Slovak Open 2022"]
[Site "Liptovsky Jan"]
[Date "2022.06.26"]
[Round "7.42"]
[White "Carnecka, Stella"]
[Black "Kovacik, Oliver"]
[Result "1-0"]
[ECO "B00"]
[WhiteElo "1648"]
[BlackElo "1331"]
[Annotator "NA RC"]
[PlyCount "25"]
[EventDate "2022.06.23"]
[EventType "swiss"]
[EventCountry "SVK"]
[SourceTitle "playchess.com"]
[Source "ChessBase"]
[SourceQuality "1"]
[TimeControl "3600+30"]

1. e4 {[%emt 0:00:02]} b6 {[%emt 0:00:30]} 2. d4 {[%emt 0:00:14]} Bb7 {[%emt 0:00:06]} 3. Nc3 {[%emt 0:00:06]} d5 {[%emt 0:00:17]} 4. e5 {[%emt 0:00:11]} e6 {[%emt 0:00:15]} 5. f4 {[%emt 0:00:34]} c5 {[%emt 0:00:16]} 6. Nf3 {[%emt 0:00:11]} Nd7 {[%emt 0:00:41]} 7. Be3 {[%emt 0:01:09]} Rc8 {[%emt 0:00:55]} 8. Be2 {[%emt 0:01:09]} cxd4 {[%emt 0:01:30]} 9. Nxd4 {[%emt 0:00:45]} Bc5 {[%emt 0:00:27]} 10. O-O {[%emt 0:04:19]} a6 {[%emt 0:00:33]} 11. f5 {[%emt 0:07:01]} Nh6 {[%emt 0:02:41]} 12. Kh1 {[%emt 0:24:49]} O-O {[%emt 0:11:43]} 13. h3 {[%emt 0:01:43]} 1-0

[Event "LJ Slovak Open 2022"]
[Site "Liptovsky Jan"]
[Date "2022.06.26"]
[Round "7.43"]
[White "Dicer, Juraj"]
[Black "Muller, Tomas"]
[Result "1-0"]
[ECO "A57"]
[WhiteElo "1562"]
[BlackElo "1240"]
[Annotator "NA RC"]
[PlyCount "133"]
[EventDate "2022.06.23"]
[EventType "swiss"]
[EventCountry "SVK"]
[SourceTitle "playchess.com"]
[Source "ChessBase"]
[SourceQuality "1"]
[TimeControl "3600+30"]

1. d4 {[%emt 0:00:05]} Nf6 {[%emt 0:01:06]} 2. c4 {[%emt 0:00:09]} c5 {[%emt 0:01:18]} 3. d5 {[%emt 0:00:31]} b5 {[%emt 0:00:49]} 4. e3 {[%emt 0:03:08]} bxc4 {[%emt 0:01:05]} 5. Bxc4 {[%emt 0:00:05]} g6 {[%emt 0:00:39]} 6. Nc3 {[%emt 0:00:44]} Bg7 {[%emt 0:01:18]} 7. Nf3 {[%emt 0:00:28]} d6 {[%emt 0:01:00]} 8. O-O {[%emt 0:00:54]} O-O {[%emt 0:00:37]} 9. Qc2 {[%emt 0:01:29]} Ba6 {[%emt 0:00:46]} 10. Nb5 {[%emt 0:00:32]} Qb6 {[%emt 0:01:22]} 11. a4 {[%emt 0:00:31]} Qb7 {[%emt 0:01:56]} 12. Rd1 {[%emt 0:04:04]} Nbd7 {[%emt 0:01:36]} 13. Nc7 {[%emt 0:01:37]} Qxc7 {[%emt 0:01:35]} 14. Bxa6 {[%emt 0:00:22]} Nb6 {[%emt 0:01:26]} 15. e4 {[%emt 0:02:00]} Rab8 {[%emt 0:02:45]} 16. a5 {[%emt 0:01:17]} Nbd7 {[%emt 0:01:13]} 17. Ra4 {[%emt 0:01:52]} Ng4 {[%emt 0:02:51]} 18. Nd4 {[%emt 0:01:00]} Rfe8 {[%emt 0:05:11]} 19. Nb5 {[%emt 0:08:18]} Qd8 {[%emt 0:01:05]} 20. Nxa7 {[%emt 0:00:50]} Ra8 {[%emt 0:02:46]} 21. Nc6 {[%emt 0:01:19]} Qc7 {[%emt 0:00:17]} 22. Be2 {[%emt 0:03:37]} Nge5 {[%emt 0:00:40]} 23. Nd4 {[%emt 0:01:57]} Rxa5 {[%emt 0:01:29]} 24. Rxa5 {[%emt 0:02:24]} Qxa5 {[%emt 0:00:30]} 25. Nb3 {[%emt 0:00:19]} Qa4 {[%emt 0:01:13]} 26. f4 {[%emt 0:00:52]} Rb8 {[%emt 0:00:52]} 27. Nd4 {[%emt 0:01:35]} Rb4 {[%emt 0:01:10]} 28. b3 {[%emt 0:03:39]} Qa5 {[%emt 0:01:54]} 29. Bd2 {[%emt 0:01:03]} cxd4 {[%emt 0:03:52]} 30. fxe5 {[%emt 0:04:35]} Nxe5 {[%emt 0:00:36]} 31. Bxb4 {[%emt 0:00:24]} Qxb4 {[%emt 0:01:00]} 32. Qc8+ {[%emt 0:00:17]} Bf8 {[%emt 0:00:17]} 33. Bc4 {[%emt 0:03:06]} Qc3 {[%emt 0:01:04]} 34. Ba6 {[%emt 0:01:01]} Qe3+ {[%emt 0:00:03]} 35. Kh1 {[%emt 0:01:42]} Ng4 {[%emt 0:00:39]} 36. Qxg4 {[%emt 0:02:02]} Qxb3 {[%emt 0:03:22]} 37. Qf3 {[%emt 0:00:38]} Qxf3 {[%emt 0:00:39]} 38. gxf3 {[%emt 0:00:04]} Kg7 {[%emt 0:01:00]} 39. Rxd4 {[%emt 0:00:21]} Kf6 {[%emt 0:00:18]} 40. f4 {[%emt 0:00:32]} h5 {[%emt 0:00:35]} 41. Kg2 {[%emt 0:00:19]} Bh6 {[%emt 0:01:12]} 42. Kf3 {[%emt 0:00:10]} Bg7 {[%emt 0:00:34]} 43. h4 {[%emt 0:00:27]} Bh6 {[%emt 0:00:17]} 44. Rd2 {[%emt 0:00:51]} Bg7 {[%emt 0:00:19]} 45. Re2 {[%emt 0:00:06]} Bh8 {[%emt 0:00:30]} 46. e5+ {[%emt 0:00:33]} dxe5 {[%emt 0:01:00]} 47. fxe5+ {[%emt 0:00:14]} Kg7 {[%emt 0:01:09]} 48. d6 {[%emt 0:00:17]} exd6 {[%emt 0:00:26]} 49. exd6 {[%emt 0:00:02]} Kf8 {[%emt 0:00:14]} 50. d7 {[%emt 0:02:43]} Bf6 {[%emt 0:00:13]} 51. Re8+ {[%emt 0:00:19]} Kg7 {[%emt 0:00:02]} 52. d8=Q {[%emt 0:01:00]} Bxd8 {[%emt 0:00:01]} 53. Rxd8 {[%emt 0:00:30]} f5 {[%emt 0:00:11]} 54. Kf4 {[%emt 0:00:27]} Kf6 {[%emt 0:00:18]} 55. Rd6+ {[%emt 0:00:23]} Kg7 {[%emt 0:00:23]} 56. Kg5 {[%emt 0:00:06]} f4 {[%emt 0:00:11]} 57. Rxg6+ {[%emt 0:00:27]} Kf7 {[%emt 0:00:36]} 58. Kxh5 {[%emt 0:00:24]} f3 {[%emt 0:00:10]} 59. Kh6 {[%emt 0:00:45]} f2 {[%emt 0:00:18]} 60. Bc4+ {[%emt 0:00:22]} Ke7 {[%emt 0:00:10]} 61. Kg7 {[%emt 0:00:55]} Ke8 {[%emt 0:00:21]} 62. h5 {[%emt 0:00:25]} Ke7 {[%emt 0:00:42]} 63. h6 {[%emt 0:00:05]} f1=Q {[%emt 0:01:19]} 64. Bxf1 {[%emt 0:00:31]} Ke8 {[%emt 0:00:30]} 65. h7 {[%emt 0:00:12]} Kd7 {[%emt 0:00:12]} 66. h8=Q {[%emt 0:00:46]} Kc7 {[%emt 0:00:11]} 67. Kh6 {[%emt 0:00:13]} 1-0

[Event "LJ Slovak Open 2022"]
[Site "Liptovsky Jan"]
[Date "2022.06.26"]
[Round "7.44"]
[White "Bilik, Matej"]
[Black "Pechociakova, Petra"]
[Result "1-0"]
[ECO "C50"]
[WhiteElo "1553"]
[BlackElo "1160"]
[Annotator "NA RC"]
[PlyCount "47"]
[EventDate "2022.06.23"]
[EventType "swiss"]
[EventCountry "SVK"]
[SourceTitle "playchess.com"]
[Source "ChessBase"]
[SourceQuality "1"]
[TimeControl "3600+30"]

1. e4 {[%emt 0:00:01]} e5 {[%emt 0:00:04]} 2. Nf3 {[%emt 0:00:20]} Nc6 {[%emt 0:00:07]} 3. Bc4 {[%emt 0:00:06]} Nf6 {[%emt 0:00:06]} 4. d3 {[%emt 0:00:07]} h6 {[%emt 0:00:12]} 5. O-O {[%emt 0:00:40]} Bc5 {[%emt 0:00:11]} 6. a4 {[%emt 0:01:01]} a5 {[%emt 0:00:41]} 7. Nc3 {[%emt 0:01:12]} O-O {[%emt 0:00:47]} 8. h3 {[%emt 0:00:40]} d6 {[%emt 0:00:33]} 9. Be3 {[%emt 0:01:02]} b6 {[%emt 0:02:45]} 10. Qd2 {[%emt 0:00:59]} Nd4 {[%emt 0:00:57]} 11. Bxd4 {[%emt 0:00:47]} Bxd4 {[%emt 0:00:32]} 12. Nxd4 {[%emt 0:01:59]} exd4 {[%emt 0:00:48]} 13. Nb5 {[%emt 0:00:24]} c6 {[%emt 0:01:12]} 14. Nxd4 {[%emt 0:01:26]} c5 {[%emt 0:02:33]} 15. Nf3 {[%emt 0:02:05]} d5 {[%emt 0:02:34]} 16. exd5 {[%emt 0:00:53]} Nxd5 {[%emt 0:00:17]} 17. Rfe1 {[%emt 0:01:59]} Qd6 {[%emt 0:00:51]} 18. Re5 {[%emt 0:08:14]} Nc7 {[%emt 0:02:31]} 19. Rae1 {[%emt 0:01:26]} Qg6 {[%emt 0:01:52]} 20. Kh2 {[%emt 0:02:39]} Kh8 {[%emt 0:01:57]} 21. Qf4 {[%emt 0:05:31]} f6 {[%emt 0:02:41]} 22. Nh4 {[%emt 0:01:30]} Qh7 {[%emt 0:00:50]} 23. Qg3 {[%emt 0:01:09]} g5 {[%emt 0:01:50]} 24. Re7 {[%emt 0:00:31]} 1-0